[Event "EYCC Open-U10 2019"]
[Site "Bratislava"]
[Date "2019.08.08"]
[Round "7.40"]
[White "Tolmacevs, Artjoms"]
[Black "Georgiadis, Anastasios"]
[Result "1/2-1/2"]
[ECO "C11"]
[WhiteElo "1583"]
[BlackElo "1391"]
[Annotator "NA"]
[PlyCount "112"]
[EventDate "2019.08.02"]
[EventType "swiss"]
[EventCountry "SVK"]
[SourceTitle "playchess.com"]
[Source "ChessBase"]
[SourceQuality "1"]
[TimeControl "40/5400+30:1800+30"]

1. e4 {[%emt 0:00:00]} e6 {[%emt 0:00:00]} 2. d4 {[%emt 0:00:00]} d5 {[%emt 0:00:00]} 3. Nc3 {[%emt 0:00:00]} Nf6 {[%emt 0:00:00]} 4. e5 {[%emt 0:00:00]} Nfd7 {[%emt 0:00:00]} 5. f4 {[%emt 0:00:00]} c5 {[%emt 0:00:00]} 6. Nf3 {[%emt 0:01:39]} Nc6 {[%emt 0:01:10]} 7. Be3 {[%emt 0:01:26]} cxd4 {[%emt 0:02:03]} 8. Nxd4 {[%emt 0:00:56]} Bc5 {[%emt 0:02:09]} 9. Nxc6 {[%emt 0:04:00]} bxc6 {[%emt 0:00:23]} 10. Bxc5 {[%emt 0:01:39]} Nxc5 {[%emt 0:00:13]} 11. b4 {[%emt 0:07:07]} Nd7 {[%emt 0:01:30]} 12. Bd3 {[%emt 0:01:48]} Qb6 {[%emt 0:02:19]} 13. a3 {[%emt 0:00:12]} Qe3+ {[%emt 0:00:12]} 14. Ne2 {[%emt 0:01:06]} c5 {[%emt 0:03:22]} 15. c4 {[%emt 0:03:00]} dxc4 {[%emt 0:04:30]} 16. Bxc4 {[%emt 0:01:02]} O-O {[%emt 0:01:33]} 17. Bb5 {[%emt 0:06:02]} Nb6 {[%emt 0:03:51]} 18. Bc6 {[%emt 0:01:25]} Rb8 {[%emt 0:07:37]} 19. Rf1 {[%emt 0:04:18]} Nd5 {[%emt 0:04:32]} 20. Rf3 {[%emt 0:13:48]} Qe4 {[%emt 0:00:30]} 21. bxc5 {[%emt 0:05:31]} Ba6 {[%emt 0:03:03]} 22. Bxd5 {[%emt 0:02:34]} exd5 {[%emt 0:00:17]} 23. Qd2 {[%emt 0:07:52]} Bxe2 {[%emt 0:01:52]} 24. Qxe2 {[%emt 0:01:11]} Qd4 {[%emt 0:01:17]} 25. Rc1 {[%emt 0:08:50]} Rb2 {[%emt 0:00:58]} 26. Qe3 {[%emt 0:02:45]} Qxe3+ {[%emt 0:02:30]} 27. Rxe3 {[%emt 0:00:11]} Rxg2 {[%emt 0:00:13]} 28. Re2 {[%emt 0:03:01]} Rg1+ {[%emt 0:00:36]} 29. Kd2 {[%emt 0:00:07]} Rxc1 {[%emt 0:01:00]} 30. Kxc1 {[%emt 0:00:04]} Rc8 {[%emt 0:00:06]} 31. Rc2 {[%emt 0:00:05]} Kf8 {[%emt 0:00:46]} 32. Kd2 {[%emt 0:00:06]} Ke7 {[%emt 0:00:53]} 33. Kd3 {[%emt 0:00:12]} Ke6 {[%emt 0:00:22]} 34. Kd4 {[%emt 0:00:09]} Rc6 {[%emt 0:00:53]} 35. Rb2 {[%emt 0:04:17]} Ra6 {[%emt 0:00:37]} 36. f5+ {[%emt 0:00:26]} Kxf5 {[%emt 0:00:51]} 37. Kxd5 {[%emt 0:00:06]} Rxa3 {[%emt 0:01:51]} 38. Rf2+ {[%emt 0:01:35]} Kg6 {[%emt 0:00:11]} 39. c6 {[%emt 0:00:55]} Rd3+ {[%emt 0:02:08]} 40. Kc5 {[%emt 0:00:00]} Rc3+ {[%emt 0:00:00]} 41. Kd6 {[%emt 0:01:17]} Rd3+ {[%emt 0:05:04]} 42. Kc7 {[%emt 0:00:53]} Re3 {[%emt 0:02:39]} 43. Rc2 {[%emt 0:02:34]} Rxe5 {[%emt 0:00:24]} 44. Kb8 {[%emt 0:00:08]} f5 {[%emt 0:02:11]} 45. c7 {[%emt 0:00:04]} Re8+ {[%emt 0:00:19]} 46. Kxa7 {[%emt 0:00:31]} h5 {[%emt 0:00:40]} 47. Rg2+ {[%emt 0:01:06]} Kf6 {[%emt 0:00:23]} 48. Kb7 {[%emt 0:00:14]} g5 {[%emt 0:00:20]} 49. Re2 {[%emt 0:07:51]} Rg8 {[%emt 0:01:02]} 50. Kc6 {[%emt 0:05:34]} f4 {[%emt 0:01:02]} 51. Kd6 {[%emt 0:00:38]} Kf5 {[%emt 0:00:37]} 52. Kd7 {[%emt 0:00:15]} f3 {[%emt 0:00:50]} 53. Re8 {[%emt 0:00:51]} Rg7+ {[%emt 0:00:16]} 54. Re7 {[%emt 0:01:03]} Rg8 {[%emt 0:00:16]} 55. Re8 {[%emt 0:01:04]} Rg7+ {[%emt 0:00:05]} 56. Re7 {[%emt 0:00:05]} Rg8 {[%emt 0:00:08]} 1/2-1/2

[Event "EYCC Open-U10 2019"]
[Site "Bratislava"]
[Date "2019.08.08"]
[Round "7.41"]
[White "Morozov, Saveliy"]
[Black "Ahmadzada, Huseyn"]
[Result "1/2-1/2"]
[ECO "B17"]
[WhiteElo "1278"]
[BlackElo "1497"]
[Annotator "NA"]
[PlyCount "130"]
[EventDate "2019.08.02"]
[EventType "swiss"]
[EventCountry "SVK"]
[SourceTitle "playchess.com"]
[Source "ChessBase"]
[SourceQuality "1"]
[TimeControl "40/5400+30:1800+30"]

1. e4 {[%emt 0:00:00]} c6 {[%emt 0:00:00]} 2. d4 {[%emt 0:00:00]} d5 {[%emt 0:00:00]} 3. Nd2 {[%emt 0:00:00]} dxe4 {[%emt 0:00:00]} 4. Nxe4 {[%emt 0:00:00]} Nd7 {[%emt 0:00:00]} 5. Nf3 {[%emt 0:05:45]} Ngf6 {[%emt 0:00:07]} 6. Nxf6+ {[%emt 0:00:18]} Nxf6 {[%emt 0:00:08]} 7. h3 {[%emt 0:10:26]} e6 {[%emt 0:02:34]} 8. c3 {[%emt 0:03:05]} Bd6 {[%emt 0:00:40]} 9. Bd3 {[%emt 0:02:25]} O-O {[%emt 0:01:08]} 10. Bg5 {[%emt 0:01:07]} h6 {[%emt 0:00:26]} 11. Bxf6 {[%emt 0:13:53]} Qxf6 {[%emt 0:00:10]} 12. O-O {[%emt 0:00:11]} b6 {[%emt 0:00:35]} 13. Re1 {[%emt 0:00:58]} Bb7 {[%emt 0:00:28]} 14. Be4 {[%emt 0:01:12]} Rfd8 {[%emt 0:04:11]} 15. Qc2 {[%emt 0:06:21]} Rac8 {[%emt 0:01:32]} 16. Rad1 {[%emt 0:01:26]} Rc7 {[%emt 0:10:15]} 17. Rd2 {[%emt 0:08:08]} Rcd7 {[%emt 0:01:39]} 18. Red1 {[%emt 0:01:08]} Bb8 {[%emt 0:05:26]} 19. b3 {[%emt 0:13:29]} Qe7 {[%emt 0:07:42]} 20. Re2 {[%emt 0:03:56]} Rd6 {[%emt 0:04:51]} 21. Rdd2 {[%emt 0:02:14]} Qc7 {[%emt 0:00:54]} 22. Ne5 {[%emt 0:14:40]} c5 {[%emt 0:03:45]} 23. Bxb7 {[%emt 0:00:15]} Qxb7 {[%emt 0:00:14]} 24. Nc4 {[%emt 0:00:33]} Rd5 {[%emt 0:01:00]} 25. dxc5 {[%emt 0:00:45]} Qc7 {[%emt 0:01:03]} 26. g3 {[%emt 0:01:22]} Qxc5 {[%emt 0:00:00]} 27. Rxd5 {[%emt 0:00:49]} Rxd5 {[%emt 0:00:00]} 28. Ne3 {[%emt 0:00:28]} Rd6 {[%emt 0:02:58]} 29. Nf5 {[%emt 0:06:34]} Qxf5 {[%emt 0:02:53]} 30. Qxf5 {[%emt 0:00:09]} exf5 {[%emt 0:00:04]} 31. Re8+ {[%emt 0:00:10]} Kh7 {[%emt 0:00:08]} 32. Rxb8 {[%emt 0:00:05]} Rd1+ {[%emt 0:00:26]} 33. Kg2 {[%emt 0:00:05]} Ra1 {[%emt 0:00:07]} 34. a4 {[%emt 0:00:40]} Ra3 {[%emt 0:00:12]} 35. Rb7 {[%emt 0:00:56]} Rxb3 {[%emt 0:00:23]} 36. Rxa7 {[%emt 0:00:08]} Rxc3 {[%emt 0:01:39]} 37. Rb7 {[%emt 0:00:06]} Ra3 {[%emt 0:00:24]} 38. Rxb6 {[%emt 0:00:00]} Rxa4 {[%emt 0:00:00]} 39. Rb7 {[%emt 0:00:00]} Kg6 {[%emt 0:00:00]} 40. Rb6+ {[%emt 0:00:00]} f6 {[%emt 0:00:00]} 41. Rb7 {[%emt 0:04:07]} h5 {[%emt 0:04:08]} 42. Rb3 {[%emt 0:04:57]} f4 {[%emt 0:02:05]} 43. Rf3 {[%emt 0:01:36]} fxg3 {[%emt 0:00:08]} 44. Rxg3+ {[%emt 0:00:03]} Kh6 {[%emt 0:00:08]} 45. Rf3 {[%emt 0:00:18]} h4 {[%emt 0:01:33]} 46. Rb3 {[%emt 0:00:25]} g5 {[%emt 0:00:14]} 47. Rb6 {[%emt 0:06:06]} Kg6 {[%emt 0:00:20]} 48. Rb8 {[%emt 0:00:33]} Re4 {[%emt 0:00:44]} 49. Rc8 {[%emt 0:05:34]} Kf5 {[%emt 0:01:02]} 50. Rc5+ {[%emt 0:00:56]} Kf4 {[%emt 0:01:43]} 51. Rc6 {[%emt 0:00:23]} f5 {[%emt 0:00:13]} 52. Rg6 {[%emt 0:00:46]} Re5 {[%emt 0:02:17]} 53. Rh6 {[%emt 0:00:27]} Rd5 {[%emt 0:01:07]} 54. Rf6 {[%emt 0:03:33]} Rd7 {[%emt 0:00:48]} 55. Rh6 {[%emt 0:00:24]} Rg7 {[%emt 0:00:15]} 56. Rh8 {[%emt 0:01:23]} Rg6 {[%emt 0:00:30]} 57. Rh7 {[%emt 0:00:12]} Ke5 {[%emt 0:00:34]} 58. Rh8 {[%emt 0:01:46]} Rd6 {[%emt 0:04:00]} 59. Rh5 {[%emt 0:00:40]} Kf4 {[%emt 0:00:40]} 60. Rh8 {[%emt 0:00:08]} Rd3 {[%emt 0:00:05]} 61. Rh6 {[%emt 0:05:22]} g4 62. Rxh4 {[%emt 0:00:56]} Rxh3 {[%emt 0:01:57]} 63. Rxh3 {[%emt 0:00:03]} gxh3+ {[%emt 0:00:05]} 64. Kxh3 {[%emt 0:00:07]} Kf3 {[%emt 0:00:03]} 65. Kh4 {[%emt 0:00:07]} Ke4 1/2-1/2

[Event "EYCC Open-U10 2019"]
[Site "Bratislava"]
[Date "2019.08.08"]
[Round "7.42"]
[White "Dimitrov, Martin"]
[Black "Derbenev, Arseniy"]
[Result "1-0"]
[ECO "C00"]
[WhiteElo "1473"]
[BlackElo "1219"]
[Annotator "NA"]
[PlyCount "77"]
[EventDate "2019.08.02"]
[EventType "swiss"]
[EventCountry "SVK"]
[SourceTitle "playchess.com"]
[Source "ChessBase"]
[SourceQuality "1"]
[TimeControl "40/5400+30:1800+30"]

1. e4 {[%emt 0:00:00]} e6 {[%emt 0:00:00]} 2. b3 {[%emt 0:00:00]} d5 {[%emt 0:00:00]} 3. Bb2 {[%emt 0:00:00]} dxe4 {[%emt 0:00:00]} 4. Nc3 {[%emt 0:00:00]} Nf6 {[%emt 0:00:06]} 5. Qe2 {[%emt 0:00:05]} Be7 {[%emt 0:00:11]} 6. Nxe4 {[%emt 0:00:08]} Nc6 {[%emt 0:01:26]} 7. O-O-O {[%emt 0:00:30]} O-O {[%emt 0:01:51]} 8. Nf3 {[%emt 0:00:15]} a5 {[%emt 0:01:28]} 9. a4 {[%emt 0:00:11]} b6 {[%emt 0:00:39]} 10. Nc3 {[%emt 0:02:37]} Ba6 {[%emt 0:01:53]} 11. Qe1 {[%emt 0:00:47]} Bb7 {[%emt 0:05:56]} 12. Bc4 {[%emt 0:03:44]} Nd5 {[%emt 0:07:07]} 13. d4 {[%emt 0:01:47]} Ncb4 {[%emt 0:07:31]} 14. Nxd5 {[%emt 0:04:53]} exd5 {[%emt 0:00:53]} 15. Be2 {[%emt 0:00:45]} Re8 {[%emt 0:01:31]} 16. Qd2 {[%emt 0:00:37]} c5 {[%emt 0:05:44]} 17. Bb5 {[%emt 0:02:27]} Rf8 {[%emt 0:00:35]} 18. h4 {[%emt 0:02:05]} cxd4 {[%emt 0:01:49]} 19. Nxd4 {[%emt 0:00:56]} Rc8 {[%emt 0:03:38]} 20. Kb1 {[%emt 0:02:02]} Bf6 {[%emt 0:00:51]} 21. Rc1 {[%emt 0:02:03]} Na6 {[%emt 0:03:47]} 22. g4 {[%emt 0:01:00]} Nc7 {[%emt 0:05:11]} 23. Bd3 {[%emt 0:02:46]} Ne6 {[%emt 0:04:58]} 24. Bf5 {[%emt 0:02:01]} Qd6 {[%emt 0:08:33]} 25. Nb5 {[%emt 0:03:39]} Qe7 {[%emt 0:00:59]} 26. Ba3 {[%emt 0:00:30]} Nc5 27. Bxc8 {[%emt 0:01:08]} Rxc8 {[%emt 0:03:38]} 28. Rce1 {[%emt 0:01:19]} Ne4 {[%emt 0:05:04]} 29. Bxe7 {[%emt 0:00:46]} Nxd2+ {[%emt 0:00:52]} 30. Kc1 {[%emt 0:00:18]} Nxb3+ {[%emt 0:00:45]} 31. Kd1 {[%emt 0:01:32]} d4 {[%emt 0:03:58]} 32. Rh3 {[%emt 0:02:43]} Na1 {[%emt 0:03:22]} 33. Nd6 {[%emt 0:01:37]} Rc7 {[%emt 0:06:08]} 34. Bd8 {[%emt 0:01:29]} Re7 {[%emt 0:01:09]} 35. Bxe7 {[%emt 0:00:14]} Bxe7 {[%emt 0:00:09]} 36. Rxe7 {[%emt 0:00:02]} Bc6 {[%emt 0:00:26]} 37. Rc7 {[%emt 0:00:13]} Bxa4 {[%emt 0:00:14]} 38. Rc8+ {[%emt 0:00:12]} Be8 39. Rxe8# {[%emt 0:00:13]} 1-0

[Event "EYCC Open-U10 2019"]
[Site "Bratislava"]
[Date "2019.08.08"]
[Round "7.43"]
[White "Faivishevsky, Noam"]
[Black "Dotzer, Lukas"]
[Result "0-1"]
[ECO "C77"]
[WhiteElo "1401"]
[BlackElo "1070"]
[Annotator "NA"]
[PlyCount "74"]
[EventDate "2019.08.02"]
[EventType "swiss"]
[EventCountry "SVK"]
[SourceTitle "playchess.com"]
[Source "ChessBase"]
[SourceQuality "1"]
[TimeControl "40/5400+30:1800+30"]

1. e4 e5 2. Nf3 Nc6 3. Bb5 a6 4. Ba4 Nf6 5. d3 Be7 6. O-O b5 7. Bb3 O-O 8. Nbd2 d6 9. c3 Na5 10. Bc2 c5 11. d4 Nc6 12. dxc5 dxc5 13. Re1 h6 14. a4 Be6 15. Nf1 Qc7 16. Be3 Rfd8 17. Qc1 c4 18. a5 Nd7 19. Ra2 Nc5 20. Ng3 Nxa5 21. Rxa5 Qxa5 22. Nxe5 Qc7 23. h3 Nd3 24. Bxd3 cxd3 25. f4 Bc5 26. Rd1 d2 27. Qc2 Bxe3+ 28. Kh1 Bxf4 29. Nh5 Qxe5 30. g4 Bc4 31. g5 Bd3 32. Nxf4 Bxc2 33. g6 Qxf4 34. gxf7+ Kf8 35. h4 Bxe4+ 36. Kg1 Qg3+ 37. Kf1 Qg2# 0-1

[Event "EYCC Open-U10 2019"]
[Site "Bratislava"]
[Date "2019.08.08"]
[Round "7.44"]
[White "Cruceru-Uceanu, Tudor-Mihai"]
[Black "Jalovec, Igor"]
[Result "1-0"]
[ECO "C95"]
[WhiteElo "1234"]
[BlackElo "1465"]
[Annotator "NA"]
[PlyCount "93"]
[EventDate "2019.08.02"]
[EventType "swiss"]
[EventCountry "SVK"]
[SourceTitle "playchess.com"]
[Source "ChessBase"]
[SourceQuality "1"]
[TimeControl "40/5400+30:1800+30"]

1. e4 {[%emt 0:00:00]} e5 {[%emt 0:00:22]} 2. Nf3 {[%emt 0:00:00]} Nc6 {[%emt 0:01:06]} 3. Bb5 {[%emt 0:00:05]} a6 {[%emt 0:00:46]} 4. Ba4 {[%emt 0:00:07]} Nf6 {[%emt 0:01:03]} 5. O-O {[%emt 0:00:10]} Be7 {[%emt 0:00:08]} 6. Re1 {[%emt 0:00:07]} b5 {[%emt 0:00:08]} 7. Bb3 {[%emt 0:00:06]} d6 {[%emt 0:01:29]} 8. c3 {[%emt 0:00:20]} O-O {[%emt 0:00:47]} 9. h3 {[%emt 0:00:10]} Nb8 {[%emt 0:01:57]} 10. d4 {[%emt 0:00:12]} Nbd7 {[%emt 0:00:50]} 11. Nbd2 {[%emt 0:00:37]} Bb7 {[%emt 0:00:51]} 12. Bc2 {[%emt 0:01:22]} Re8 {[%emt 0:00:51]} 13. Nf1 {[%emt 0:04:30]} Bf8 {[%emt 0:02:56]} 14. dxe5 {[%emt 0:01:11]} Nxe5 {[%emt 0:04:34]} 15. Nxe5 {[%emt 0:00:13]} dxe5 {[%emt 0:00:20]} 16. f3 {[%emt 0:00:29]} h6 {[%emt 0:01:41]} 17. Be3 {[%emt 0:00:11]} Bd6 {[%emt 0:01:35]} 18. Ng3 {[%emt 0:01:15]} Bc8 {[%emt 0:06:20]} 19. Qe2 {[%emt 0:03:29]} Be6 {[%emt 0:01:42]} 20. Bb3 {[%emt 0:00:47]} Qe7 {[%emt 0:05:16]} 21. Bxe6 {[%emt 0:00:27]} fxe6 {[%emt 0:00:34]} 22. Rac1 {[%emt 0:06:09]} c5 {[%emt 0:08:53]} 23. Red1 {[%emt 0:04:41]} Red8 {[%emt 0:04:54]} 24. c4 {[%emt 0:04:08]} b4 {[%emt 0:02:07]} 25. b3 {[%emt 0:00:27]} Qf7 {[%emt 0:03:04]} 26. Qf2 {[%emt 0:02:39]} Rac8 {[%emt 0:01:57]} 27. Rd2 {[%emt 0:01:16]} Nh5 {[%emt 0:04:24]} 28. Rcd1 {[%emt 0:00:49]} Rc6 {[%emt 0:01:54]} 29. Nxh5 {[%emt 0:01:45]} Qxh5 {[%emt 0:00:10]} 30. Kh2 {[%emt 0:00:35]} Kh7 {[%emt 0:01:27]} 31. Rd3 {[%emt 0:03:36]} Qf7 {[%emt 0:05:43]} 32. Qd2 {[%emt 0:00:22]} Qc7 {[%emt 0:05:42]} 33. g3 {[%emt 0:13:03]} Qb6 {[%emt 0:00:52]} 34. f4 {[%emt 0:00:59]} exf4 {[%emt 0:04:59]} 35. gxf4 {[%emt 0:00:19]} e5 {[%emt 0:01:43]} 36. f5 {[%emt 0:00:33]} Qc7 {[%emt 0:02:28]} 37. Qg2 {[%emt 0:01:53]} Rf8 {[%emt 0:02:33]} 38. Qg6+ {[%emt 0:02:44]} Kh8 {[%emt 0:02:51]} 39. Rxd6 {[%emt 0:00:40]} Rxd6 {[%emt 0:00:30]} 40. Qxd6 {[%emt 0:00:00]} Qf7 {[%emt 0:00:00]} 41. Bxc5 {[%emt 0:00:24]} Re8 {[%emt 0:01:01]} 42. Qg6 {[%emt 0:00:25]} Qg8 {[%emt 0:00:21]} 43. f6 {[%emt 0:00:12]} gxf6 {[%emt 0:00:17]} 44. Qxh6+ {[%emt 0:00:19]} Qh7 {[%emt 0:00:07]} 45. Qxf6+ {[%emt 0:00:08]} Qg7 {[%emt 0:00:12]} 46. Qxg7+ {[%emt 0:00:14]} Kxg7 {[%emt 0:00:18]} 47. Bxb4 1-0

[Event "EYCC Open-U10 2019"]
[Site "Bratislava"]
[Date "2019.08.08"]
[Round "7.45"]
[White "Rabinovich, Yoav"]
[Black "Haubold, Christian Lucas"]
[Result "1/2-1/2"]
[ECO "A46"]
[WhiteElo "1193"]
[BlackElo "1429"]
[Annotator "NA"]
[PlyCount "95"]
[EventDate "2019.08.02"]
[EventType "swiss"]
[EventCountry "SVK"]
[SourceTitle "playchess.com"]
[Source "ChessBase"]
[SourceQuality "1"]
[TimeControl "40/5400+30:1800+30"]

1. d4 {[%emt 0:00:00]} Nf6 {[%emt 0:00:00]} 2. Nf3 {[%emt 0:00:00]} e6 {[%emt 0:00:00]} 3. Bf4 {[%emt 0:00:00]} c5 {[%emt 0:00:03]} 4. e3 {[%emt 0:00:02]} Nc6 {[%emt 0:00:24]} 5. Nbd2 {[%emt 0:00:50]} cxd4 {[%emt 0:00:35]} 6. exd4 {[%emt 0:00:05]} b6 {[%emt 0:01:06]} 7. Nc4 {[%emt 0:00:11]} d6 {[%emt 0:01:20]} 8. c3 {[%emt 0:03:52]} Bb7 {[%emt 0:02:05]} 9. Bd3 {[%emt 0:01:30]} Be7 {[%emt 0:01:28]} 10. O-O {[%emt 0:00:16]} O-O {[%emt 0:00:14]} 11. Qc2 {[%emt 0:01:04]} h6 {[%emt 0:03:48]} 12. Rfe1 {[%emt 0:03:22]} Rc8 {[%emt 0:03:10]} 13. a4 {[%emt 0:04:48]} Nb4 {[%emt 0:13:18]} 14. cxb4 {[%emt 0:05:06]} Bxf3 {[%emt 0:00:47]} 15. gxf3 {[%emt 0:00:03]} d5 {[%emt 0:00:19]} 16. Qb3 {[%emt 0:00:44]} dxc4 {[%emt 0:00:15]} 17. Bxc4 {[%emt 0:00:02]} Qxd4 {[%emt 0:00:58]} 18. Bxe6 {[%emt 0:00:48]} Bxb4 {[%emt 0:10:27]} 19. Be5 {[%emt 0:01:57]} Qh4 {[%emt 0:06:12]} 20. Bg3 {[%emt 0:00:43]} Qg5 {[%emt 0:04:56]} 21. f4 {[%emt 0:02:45]} Qa5 {[%emt 0:02:52]} 22. Re5 {[%emt 0:00:16]} Rc5 {[%emt 0:00:16]} 23. Bf5 {[%emt 0:03:44]} Nd5 {[%emt 0:24:27]} 24. Rd1 {[%emt 0:00:58]} Nxf4 {[%emt 0:03:01]} 25. Bxf4 {[%emt 0:10:47]} Rxe5 {[%emt 0:00:07]} 26. Bxe5 {[%emt 0:06:54]} Qxe5 {[%emt 0:00:13]} 27. Rd5 {[%emt 0:02:42]} Qe1+ {[%emt 0:00:06]} 28. Kg2 {[%emt 0:00:12]} Bc5 {[%emt 0:00:29]} 29. Qf3 {[%emt 0:01:01]} Qb4 {[%emt 0:00:35]} 30. b3 {[%emt 0:00:36]} Qh4 {[%emt 0:00:53]} 31. Rd7 {[%emt 0:00:23]} a5 {[%emt 0:00:38]} 32. Bd3 {[%emt 0:03:33]} Qg5+ {[%emt 0:04:56]} 33. Kf1 {[%emt 0:01:59]} h5 {[%emt 0:03:16]} 34. Rd5 {[%emt 0:03:26]} Qg4 {[%emt 0:00:41]} 35. Qxg4 {[%emt 0:00:42]} hxg4 {[%emt 0:00:06]} 36. Rg5 {[%emt 0:00:17]} Rd8 {[%emt 0:00:12]} 37. Be2 {[%emt 0:00:04]} Rd4 {[%emt 0:01:26]} 38. Rxg4 {[%emt 0:00:39]} Rxg4 {[%emt 0:00:06]} 39. Bxg4 {[%emt 0:00:25]} Kf8 {[%emt 0:00:12]} 40. Be2 {[%emt 0:00:00]} Ke7 {[%emt 0:00:00]} 41. Bc4 {[%emt 0:00:34]} f5 {[%emt 0:00:39]} 42. f3 {[%emt 0:00:09]} g5 {[%emt 0:00:16]} 43. h3 {[%emt 0:00:18]} Kd6 {[%emt 0:00:18]} 44. Kg2 {[%emt 0:01:00]} f4 {[%emt 0:00:14]} 45. Bf7 {[%emt 0:00:48]} Ke5 {[%emt 0:00:07]} 46. Bg8 {[%emt 0:00:20]} Be3 {[%emt 0:00:17]} 47. Bf7 {[%emt 0:00:56]} Kd4 {[%emt 0:00:10]} 48. Be6 {[%emt 0:00:16]} 1/2-1/2

[Event "EYCC Open-U10 2019"]
[Site "Bratislava"]
[Date "2019.08.08"]
[Round "7.46"]
[White "Romanov, Vladislav O."]
[Black "Ribstein, Orel"]
[Result "1-0"]
[ECO "A10"]
[WhiteElo "1099"]
[BlackElo "1662"]
[Annotator "NA"]
[PlyCount "94"]
[EventDate "2019.08.02"]
[EventType "swiss"]
[EventCountry "SVK"]
[SourceTitle "playchess.com"]
[Source "ChessBase"]
[SourceQuality "1"]
[TimeControl "40/5400+30:1800+30"]

1. c4 {[%emt 0:00:00]} g6 {[%emt 0:00:00]} 2. Nc3 {[%emt 0:00:00]} Bg7 {[%emt 0:00:00]} 3. g3 {[%emt 0:00:10]} d6 {[%emt 0:00:04]} 4. Bg2 {[%emt 0:00:37]} e5 {[%emt 0:00:14]} 5. e3 {[%emt 0:00:58]} f5 {[%emt 0:00:17]} 6. Nge2 {[%emt 0:00:48]} Nf6 {[%emt 0:00:14]} 7. d3 {[%emt 0:00:18]} O-O {[%emt 0:01:15]} 8. O-O {[%emt 0:01:02]} c6 {[%emt 0:06:15]} 9. Rb1 {[%emt 0:08:32]} Be6 {[%emt 0:07:53]} 10. b4 {[%emt 0:04:36]} Nbd7 {[%emt 0:03:25]} 11. b5 {[%emt 0:02:14]} Qc7 {[%emt 0:00:31]} 12. a4 {[%emt 0:12:58]} Rac8 {[%emt 0:05:56]} 13. Ba3 {[%emt 0:07:49]} Rfd8 {[%emt 0:02:22]} 14. Qc2 {[%emt 0:07:11]} d5 {[%emt 0:04:16]} 15. cxd5 {[%emt 0:03:45]} cxd5 {[%emt 0:01:03]} 16. Qb3 {[%emt 0:04:17]} Nc5 {[%emt 0:03:59]} 17. Bxc5 {[%emt 0:00:57]} Qxc5 {[%emt 0:00:07]} 18. Rfc1 {[%emt 0:02:18]} Qd6 {[%emt 0:03:25]} 19. Qb2 {[%emt 0:09:52]} Nd7 {[%emt 0:07:17]} 20. Qd2 {[%emt 0:03:48]} Nc5 {[%emt 0:16:21]} 21. d4 {[%emt 0:12:04]} Ne4 {[%emt 0:00:59]} 22. Qd1 {[%emt 0:06:01]} Nxc3 {[%emt 0:04:43]} 23. Nxc3 {[%emt 0:01:16]} e4 {[%emt 0:06:39]} 24. Qb3 {[%emt 0:03:36]} g5 {[%emt 0:02:04]} 25. Ne2 {[%emt 0:02:01]} Bh6 {[%emt 0:03:48]} 26. b6 {[%emt 0:00:35]} a6 {[%emt 0:02:05]} 27. Qb2 {[%emt 0:00:47]} Kh8 {[%emt 0:09:23]} 28. Nc3 {[%emt 0:00:32]} f4 {[%emt 0:01:58]} 29. a5 {[%emt 0:00:26]} fxe3 {[%emt 0:04:51]} 30. fxe3 {[%emt 0:00:13]} g4 {[%emt 0:00:46]} 31. Qe2 {[%emt 0:00:18]} Bg5 {[%emt 0:00:54]} 32. Na4 {[%emt 0:00:42]} Rf8 {[%emt 0:01:17]} 33. Rxc8 {[%emt 0:01:05]} Bxc8 {[%emt 0:00:11]} 34. Nc5 {[%emt 0:00:10]} h5 {[%emt 0:00:16]} 35. Rf1 {[%emt 0:00:38]} Rf3 {[%emt 0:00:53]} 36. Bxf3 {[%emt 0:00:21]} gxf3 {[%emt 0:00:01]} 37. Qf2 {[%emt 0:00:13]} Qh6 {[%emt 0:00:16]} 38. Re1 {[%emt 0:00:19]} Qg7 {[%emt 0:00:51]} 39. Rc1 {[%emt 0:00:40]} Bh3 {[%emt 0:00:41]} 40. Nb3 {[%emt 0:00:00]} Qh6 {[%emt 0:00:00]} 41. Rc3 {[%emt 0:01:57]} h4 {[%emt 0:08:54]} 42. Qd2 {[%emt 0:06:52]} Qh5 {[%emt 0:13:53]} 43. Qf2 {[%emt 0:13:29]} hxg3 {[%emt 0:02:07]} 44. hxg3 {[%emt 0:00:58]} Bg2 {[%emt 0:00:35]} 45. Qe1 {[%emt 0:00:30]} Qh1+ {[%emt 0:02:44]} 46. Kf2 {[%emt 0:00:08]} Qh2 {[%emt 0:03:56]} 47. Qg1 {[%emt 0:00:55]} Qh7 1-0

[Event "EYCC Open-U10 2019"]
[Site "Bratislava"]
[Date "2019.08.08"]
[Round "7.47"]
[White "Tushishvili, Tamaz"]
[Black "Biyiksiz, Ali Batuhan"]
[Result "1-0"]
[ECO "A22"]
[WhiteElo "1323"]
[BlackElo "1378"]
[Annotator "NA"]
[PlyCount "103"]
[EventDate "2019.08.02"]
[EventType "swiss"]
[EventCountry "SVK"]
[SourceTitle "playchess.com"]
[Source "ChessBase"]
[SourceQuality "1"]
[TimeControl "40/5400+30:1800+30"]

1. c4 {[%emt 0:00:00]} e5 {[%emt 0:00:00]} 2. Nc3 {[%emt 0:00:00]} Nf6 {[%emt 0:00:00]} 3. g3 {[%emt 0:00:00]} Nc6 {[%emt 0:03:03]} 4. Bg2 {[%emt 0:01:01]} g6 {[%emt 0:00:40]} 5. d3 {[%emt 0:00:03]} Bg7 {[%emt 0:00:24]} 6. e3 {[%emt 0:00:01]} d6 {[%emt 0:00:13]} 7. Nge2 {[%emt 0:00:02]} O-O {[%emt 0:00:14]} 8. O-O {[%emt 0:00:05]} Nd7 {[%emt 0:00:21]} 9. Rb1 {[%emt 0:00:21]} Ne7 {[%emt 0:02:23]} 10. b4 {[%emt 0:00:41]} c6 {[%emt 0:01:27]} 11. b5 {[%emt 0:02:12]} Qc7 {[%emt 0:00:56]} 12. bxc6 {[%emt 0:00:45]} bxc6 {[%emt 0:01:20]} 13. Ba3 {[%emt 0:06:34]} Rb8 {[%emt 0:02:18]} 14. Qc2 {[%emt 0:02:44]} Bb7 {[%emt 0:04:51]} 15. d4 {[%emt 0:01:24]} Rfe8 {[%emt 0:12:45]} 16. Rfd1 {[%emt 0:04:48]} d5 {[%emt 0:16:45]} 17. cxd5 {[%emt 0:02:02]} cxd5 {[%emt 0:00:45]} 18. dxe5 {[%emt 0:02:45]} Nxe5 {[%emt 0:01:55]} 19. Bxe7 {[%emt 0:00:39]} Rxe7 {[%emt 0:00:09]} 20. Bxd5 {[%emt 0:01:27]} Bxd5 {[%emt 0:00:45]} 21. Rxb8+ {[%emt 0:00:14]} Qxb8 {[%emt 0:00:12]} 22. Nxd5 {[%emt 0:00:31]} Re8 {[%emt 0:01:29]} 23. e4 {[%emt 0:05:39]} Qb7 {[%emt 0:02:55]} 24. Qb3 {[%emt 0:01:39]} Qc8 {[%emt 0:02:13]} 25. Kg2 {[%emt 0:02:15]} Qb8 {[%emt 0:13:28]} 26. f4 {[%emt 0:03:03]} Nc6 {[%emt 0:02:19]} 27. e5 {[%emt 0:01:28]} Qxb3 {[%emt 0:01:43]} 28. axb3 {[%emt 0:00:03]} f6 {[%emt 0:03:35]} 29. exf6 {[%emt 0:01:31]} Rxe2+ {[%emt 0:00:06]} 30. Kf3 {[%emt 0:00:16]} Rb2 {[%emt 0:02:29]} 31. fxg7 {[%emt 0:00:32]} Rxb3+ {[%emt 0:00:31]} 32. Kg4 {[%emt 0:00:24]} Kxg7 {[%emt 0:00:05]} 33. Nc7 {[%emt 0:01:37]} Rb7 {[%emt 0:04:14]} 34. Rd7+ {[%emt 0:01:25]} Kg8 {[%emt 0:03:14]} 35. Kg5 {[%emt 0:00:31]} Nd4 {[%emt 0:01:10]} 36. Rxd4 {[%emt 0:01:41]} Rxc7 {[%emt 0:00:15]} 37. Kh6 {[%emt 0:00:37]} Rf7 {[%emt 0:01:09]} 38. g4 {[%emt 0:00:39]} Rf8 {[%emt 0:00:59]} 39. g5 {[%emt 0:00:49]} a5 {[%emt 0:03:16]} 40. h4 {[%emt 0:00:00]} Rf5 {[%emt 0:00:00]} 41. Rd8+ {[%emt 0:02:29]} Rf8 {[%emt 0:04:51]} 42. Rxf8+ {[%emt 0:01:21]} Kxf8 {[%emt 0:00:14]} 43. Kxh7 {[%emt 0:00:04]} a4 {[%emt 0:00:07]} 44. f5 {[%emt 0:00:06]} a3 {[%emt 0:00:55]} 45. fxg6 {[%emt 0:00:04]} a2 {[%emt 0:00:36]} 46. g7+ {[%emt 0:00:01]} Ke7 {[%emt 0:01:30]} 47. g8=Q {[%emt 0:00:05]} a1=Q {[%emt 0:00:10]} 48. Qg7+ {[%emt 0:00:05]} Qxg7+ {[%emt 0:00:24]} 49. Kxg7 {[%emt 0:00:04]} Ke6 {[%emt 0:00:13]} 50. h5 {[%emt 0:00:03]} Kf5 {[%emt 0:00:09]} 51. g6 {[%emt 0:00:05]} Kg5 {[%emt 0:00:05]} 52. h6 {[%emt 0:00:01]} 1-0